fUSD/lending_fUSD_20250617
["ID","MTS","AMOUNT","RATE_DAILY","PERIOD"]
[366220592,1750129844260,-557.39,0.00016761,2]
[366220593,1750129844270,-490.0,0.00016761,2]
[366220594,1750129844280,-490.0,0.00016761,2]
[366220595,1750129844290,-490.0,0.00016761,2]
[366220596,1750129844300,-490.0,0.00016761,2]
[366220597,1750129844310,-444.47057034,0.00016761,2]
[366220598,1750129844320,-907.49,0.00016761,2]
[366220599,1750129844330,-490.0,0.00016761,2]
[366220600,1750129844340,-490.0,0.00016761,2]
[366220601,1750129844350,-1582.6,0.00016761,2]
[366220602,1750129844360,-6105.36,0.00016761,2]
[366220603,1750129844370,-564.19822614,0.00016761,2]
[366220604,1750129844382,-822.37,0.00016761,2]
[366220605,1750129844392,-490.0,0.00016761,2]
[366220606,1750129844402,-490.0,0.00016761,2]
[366220607,1750129844412,-490.0,0.00016761,2]
[366220608,1750129844422,-490.0,0.00016761,2]
[366220609,1750129844432,-490.0,0.00016761,2]
[366220610,1750129844442,-275.9995224,0.00016761,2]
[366220611,1750129844452,-490.0,0.00016761,2]
[366220612,1750129844461,-819.63,0.00016761,2]
[366220613,1750129844471,-490.0,0.00016761,2]
[366220614,1750129844481,-653.52,0.00016761,2]
[366220615,1750129844491,-498.39,0.00016761,2]
[366220616,1750129844502,-490.0,0.00016761,2]
[366220617,1750129844512,-490.0,0.00016761,2]
[366220618,1750129844521,-490.0,0.00016761,2]
[366220619,1750129844531,-490.0,0.00016762,2]
[366220620,1750129844541,-490.0,0.00016762,2]
[366220621,1750129844551,-516.12971647,0.00016762,2]
[366220622,1750129844561,-490.0,0.00016762,2]
[366220623,1750129844571,-199.29444303,0.00016762,2]
[366220624,1750129844581,-490.0,0.00016762,2]
[366220625,1750129844591,-426.60841684,0.00016762,2]
[366220626,1750129844601,-556.18,0.00016762,2]
[366220627,1750129844610,-316.3618159,0.00016762,2]
[366220628,1750129844620,-490.0,0.00016762,2]
[366220629,1750129844631,-490.0,0.00016762,2]
[366220630,1750129844641,-490.0,0.00016762,2]
[366220631,1750129844651,-490.0,0.00016762,2]
[366220632,1750129844660,-490.0,0.00016762,2]
[366220633,1750129844670,-711.84,0.00016762,2]
[366220634,1750129844680,-916.71,0.00016762,2]
[366220635,1750129844689,-2316.13,0.00016762,2]
[366220636,1750129844700,-490.0,0.00016762,2]
[366220637,1750129844709,-1647.31,0.00016762,2]
[366220638,1750129844719,-2158.35,0.00016762,2]
[366220639,1750129844729,-2055.61,0.00016762,2]
[366220640,1750129844739,-1646.16,0.00016762,2]
[366220641,1750129844748,-936.53,0.00016762,2]
[366220642,1750129844758,-1122.32,0.00016762,2]
[366220643,1750129844768,-490.0,0.00016762,2]
[366220644,1750129844778,-490.0,0.00016762,2]
[366220645,1750129844788,-490.0,0.00016762,2]
[366220646,1750129844798,-476.50615144,0.00016762,2]
[366220647,1750129845091,-127.73384856,0.00016762,2]
[366220648,1750129845102,-2837.35577697,0.00016762,2]
[366220650,1750129846244,-490.0,0.00016761,2]
[366220651,1750129846255,-1748.42422303,0.00016762,2]
[366220652,1750129846264,-559.05,0.00016762,2]
[366220653,1750129846274,-490.0,0.00016762,2]
[366220654,1750129846284,-780.79,0.00016762,2]
[366220655,1750129846295,-490.0,0.00016762,2]
[366220656,1750129846306,-490.0,0.00016762,2]
[366220657,1750129846316,-3278.06,0.00016762,2]
[366220658,1750129846326,-792.14,0.00016762,2]
[366220659,1750129846336,-490.0,0.00016762,2]
[366220660,1750129846347,-540.87,0.00016762,2]
[366220661,1750129846357,-490.0,0.00016762,2]
[366220662,1750129846368,-490.0,0.00016762,2]
[366220663,1750129846379,-596.93,0.00016762,2]
[366220664,1750129846389,-490.0,0.00016762,2]
[366220665,1750129846399,-490.0,0.00016762,2]
[366220666,1750129846409,-2456.67,0.00016762,2]
[366220667,1750129846419,-490.0,0.00016762,2]
[366220668,1750129846429,-2505.87,0.00016762,2]
[366220669,1750129846440,-650.67,0.00016762,2]
[366220670,1750129846449,-490.0,0.00016762,2]
[366220671,1750129846459,-490.0,0.00016762,2]
[366220672,1750129846470,-490.0,0.00016762,2]
[366220673,1750129846480,-813.71,0.00016762,2]
[366220674,1750129846490,-490.0,0.00016762,2]
[366220675,1750129846500,-638.06,0.00016762,2]
[366220676,1750129846510,-490.0,0.00016762,2]
[366220677,1750129846520,-1923.04,0.00016762,2]
[366220678,1750129846530,-571.74,0.00016762,2]
[366220679,1750129846541,-490.0,0.00016762,2]
[366220680,1750129846550,-500.57,0.00016762,2]
[366220681,1750129846560,-490.0,0.00016762,2]
[366220682,1750129846571,-490.0,0.00016762,2]
[366220683,1750129846582,-999.04,0.00016762,2]
[366220684,1750129846592,-490.0,0.00016763,2]
[366220685,1750129846602,-476.21,0.00016763,2]
[366220686,1750129846613,-344.44100878,0.00016763,2]
[366220687,1750129846623,-158.17444326,0.00016763,2]
[366220688,1750129846633,-317.38854217,0.00016763,2]
[366220689,1750129846642,-490.73581727,0.00016763,2]
[366220690,1750129846652,-185.45123511,0.00016763,2]
[366220691,1750129846663,-475.96747866,0.00016763,2]
[366220692,1750129846674,-223.6,0.00016763,2]
[366220693,1750129846684,-490.0,0.00016763,2]
[366220694,1750129846695,-490.0,0.00016763,2]
[366220695,1750129846706,-490.0,0.00016763,2]
[366220696,1750129846716,-433.7776808,0.00016763,2]
[366220698,1750129846726,-268.26570946,0.00016763,2]
[366220700,1750129846736,-629.2914931,0.00016763,2]
[366220701,1750129846746,-428.71172668,0.00016763,2]
[366220702,1750129846756,-211.26107953,0.00016763,2]
[366220703,1750129846767,-456.63665849,0.00016763,2]
[366220704,1750129846777,-490.0,0.00016763,2]
[366220705,1750129846787,-411.12768367,0.00016763,2]
[366220706,1750129846797,-490.0,0.00016763,2]
[366220707,1750129846807,-490.0,0.00016763,2]
[366220708,1750129846818,-548.67259938,0.00016763,2]
[366220709,1750129846828,-237.4440124,0.00016763,2]
[366220710,1750129846839,-535.72,0.00016763,2]
[366220711,1750129846850,-490.0,0.00016763,2]
[366220712,1750129846863,-490.0,0.00016763,2]
[366220713,1750129846874,-490.0,0.00016763,2]
[366220714,1750129846884,-490.0,0.00016763,2]
[366220715,1750129846895,-490.0,0.00016763,2]
[366220716,1750129846905,-629.91,0.00016763,2]
[366220717,1750129846915,-490.0,0.00016763,2]
[366220718,1750129846926,-406.54993834,0.00016767,2]
[366220719,1750129846937,-168.21747792,0.00016782,2]
[366220720,1750129846946,-974.88464668,0.00016785,2]
[366220721,1750129846957,-406.54993834,0.00016789,2]
[366220722,1750129846967,-201.0,0.00016794,4]
[366220723,1750129846977,-1632.0,0.00016796,2]
[366220724,1750129846987,-2255.575,0.00016798,2]
[366220725,1750129846997,-151.0,0.00016799,2]
[366220726,1750129847007,-151.0,0.00016799,2]
[366220727,1750129847017,-151.0,0.00016799,2]
[366220728,1750129847027,-151.0,0.00016799,2]
[366220729,1750129847037,-151.0,0.00016799,2]
[366220730,1750129847411,-151.0,0.00016799,2]
[366220731,1750129847422,-151.0,0.00016799,2]
[366220732,1750129847432,-165.110782,0.00016799,2]
[366220733,1750129847442,-151.0,0.00016799,2]
[366220734,1750129847452,-151.0,0.00016799,2]
[366220735,1750129847461,-151.0,0.00016799,2]
[366220736,1750129847471,-151.0,0.00016799,2]
[366220737,1750129847481,-151.0,0.00016799,2]
[366220738,1750129847491,-222.941323,0.00016799,2]
[366220739,1750129847501,-151.0,0.00016799,2]
[366220740,1750129847510,-151.0,0.00016799,2]
[366220741,1750129847521,-1000.0,0.00016799,2]
[366220742,1750129847530,-500.0,0.00016799,2]
[366220743,1750129847540,-611.93,0.00016799,2]
[366220744,1750129847551,-2897.3,0.00016799,2]
[366220745,1750129847561,-42391.41446277,0.000168,2]
[366220746,1750129847886,-2149.2,0.000168,2]
[366220747,1750129847899,-900.198,0.000168,2]
[366220748,1750129871522,200.0,0.00014895,2]
[366220749,1750129986719,217.96,0.00013699,2]
[366220751,1750129992031,202.0,0.00014895,2]
[366220753,1750130294065,182.52,0.00015342,2]
[366220754,1750130323400,250.0,0.00015,2]
[366220755,1750130477670,1000.0,0.00015351,2]
[366220756,1750130531608,202.0,0.00015269,2]
[366220757,1750130635035,666.0,0.00015236,2]
[366220758,1750130668724,907.84,0.00015253,2]
[366220759,1750130668924,4.261252,0.00015257,2]
[366220760,1750130669279,903.578748,0.00015257,2]
[366220761,1750130669328,907.84,0.00015261,2]
[366220762,1750130669370,907.84,0.00015265,2]
[366220763,1750130669544,907.84,0.00015269,2]
[366220764,1750130669742,907.84,0.00015273,2]
[366220765,1750130669964,907.84,0.00015277,2]
[366220766,1750130670179,907.84,0.00015281,2]
[366220767,1750130670400,907.84,0.00015285,2]
[366220768,1750130670601,741.541252,0.00015289,2]
[366220769,1750130670626,166.298748,0.00015289,2]
[366220770,1750130670798,907.84,0.00015293,2]
[366220771,1750130671199,907.84,0.00015297,2]
[366220772,1750130671408,907.84,0.00015301,2]
[366220773,1750130672599,907.84,0.00015305,2]
[366220774,1750130672804,907.84,0.00015309,2]
[366220775,1750130673012,907.84,0.00015313,2]
[366220776,1750130673228,907.84,0.00015317,2]
[366220777,1750130673441,907.84,0.00015321,2]
[366220778,1750130673651,570.981252,0.00015325,2]
[366220779,1750130673679,336.858748,0.00015325,2]
[366220780,1750130673866,907.84,0.00015329,2]
[366220781,1750130705093,150.0,0.00015288,2]
[366220782,1750130705170,150.0,0.00015394,2]
[366220783,1750130707584,150.0,0.00015288,2]
[366220784,1750130708024,150.0,0.0001532,2]
[366220785,1750130708082,150.0,0.00015353,2]
[366220786,1750130708115,150.0,0.00015386,2]
[366220787,1750130708195,150.0,0.00015418,2]
[366220788,1750130708292,150.0,0.00015451,2]
[366220789,1750130708334,150.0,0.00015484,2]
[366220790,1750130714123,150.0,0.00015288,2]
[366220791,1750130714180,150.0,0.00015388,2]
[366220792,1750130714257,150.0,0.00015488,2]
[366220793,1750130717447,150.0,0.00015288,2]
[366220794,1750130717488,150.0,0.00015409,2]
[366220795,1750130723839,150.0,0.00015288,2]
[366220796,1750130724383,150.0,0.00015288,2]
[366220797,1750130725706,150.0,0.00015288,2]
[366220798,1750130726051,150.0,0.00015288,2]
[366220799,1750130726182,150.0,0.00015429,2]
[366220800,1750130728248,150.0,0.00015288,2]
[366220801,1750130729883,150.0,0.00015288,2]
[366220802,1750130739653,301.49,0.000153,2]
[366220803,1750130819845,263.3,0.00015488,2]
[366220804,1750130839646,415.31,0.00014966,2]
[366220805,1750130891661,202.0,0.00014745,2]
[366220806,1750130891929,202.0,0.00015231,2]
[366220807,1750130917958,2221.201252,0.0001495,2]
[366220808,1750130917981,4137.548748,0.0001495,2]
[366220809,1750130947844,300.74078207,0.00024658,120]
[366220810,1750130973025,150.0,0.00015493,2]
[366220822,1750131019081,1173.71,0.00014932,2]
[366220829,1750131032331,-176.10395983,0.00015499,2]
[366220830,1750131032341,-250.0,0.00015499,2]
[366220831,1750131032352,-160.437328,0.00015499,2]
[366220832,1750131032362,-152.274791,0.00015499,2]
[366220833,1750131032372,-157.073217,0.00015499,2]
[366220834,1750131032382,-94.71735017,0.00015499,2]
[366220835,1750131032394,-67.91268483,0.00015499,2]
[366220836,1750131032404,-162.395253,0.00015499,2]
[366220837,1750131032414,-152.507463,0.00015499,2]
[366220838,1750131032424,-150.0,0.000155,2]
[366220839,1750131032434,-150.0,0.00015516,2]
[366220840,1750131032444,-150.0,0.0001553,2]
[366220841,1750131032453,-246.07,0.0001553,2]
[366220842,1750131032463,-150.0,0.00015549,2]
[366220843,1750131032472,-1200.0,0.0001555,2]
[366220844,1750131032483,-600.0,0.0001555,2]
[366220845,1750131032493,-300.0,0.00015551,2]
[366220846,1750131032503,-2363.49742355,0.00015552,2]
[366220847,1750131032513,-2363.49742356,0.00015564,2]
[366220848,1750131032524,-150.0,0.00015571,2]
[366220849,1750131032533,-150.0,0.00015571,2]
[366220850,1750131032543,-150.0,0.00015571,2]
[366220851,1750131032553,-150.0,0.00015582,2]
[366220852,1750131032564,-150.0,0.00015587,2]
[366220853,1750131032574,-150.0,0.00015606,2]
[366220854,1750131032583,-150.0,0.00015614,2]
[366220855,1750131032593,-150.0,0.00015647,2]
[366220856,1750131032603,-150.0,0.00015652,2]
[366220857,1750131032613,-151.0,0.00015654,2]
[366220858,1750131032622,-151.0,0.00015654,2]
[366220859,1750131032632,-151.0,0.00015654,2]
[366220860,1750131032642,-151.0,0.00015654,2]
[366220861,1750131032652,-151.0,0.00015654,2]
[366220862,1750131032662,-285.80488263,0.00015654,2]
[366220863,1750131032671,-152.274791,0.00015661,2]
[366220864,1750131032681,-162.395253,0.00015661,2]
[366220865,1750131032691,-152.274791,0.00015662,2]
[366220866,1750131032701,-162.395253,0.00015662,2]
[366220867,1750131032711,-152.274791,0.00015664,2]
[366220868,1750131032721,-162.395253,0.00015664,2]
[366220869,1750131032731,-176.10395983,0.00015664,2]
[366220870,1750131032741,-150.0,0.0001568,2]
[366220871,1750131032750,-300.0,0.00015687,2]
[366220873,1750131032760,-150.0,0.00015687,2]
[366220874,1750131032771,-150.0,0.00015712,2]
[366220875,1750131032781,-150.0,0.00015712,2]
[366220876,1750131032791,-150.0,0.00015712,2]
[366220877,1750131032802,-150.0,0.00015712,2]
[366220878,1750131032811,-150.0,0.00015712,2]
[366220880,1750131032821,-150.0,0.00015712,2]
[366220882,1750131032831,-202.0,0.00015718,3]
[366220884,1750131032841,-152.274791,0.00015719,2]
[366220886,1750131032850,-162.395253,0.00015719,2]
[366220888,1750131032860,-152.274791,0.0001572,2]
[366220890,1750131032870,-162.395253,0.0001572,2]
[366220891,1750131032879,-150.0,0.00015745,2]
[366220893,1750131032889,-1269.0,0.00015764,2]
[366220895,1750131032899,-150.0,0.00015773,2]
[366220897,1750131032909,-150.0,0.00015778,2]
[366220898,1750131032919,-150.0,0.00015787,2]
[366220899,1750131032929,-150.0,0.0001581,2]
[366220900,1750131032939,-150.0,0.00015818,2]
[366220901,1750131032949,-152.274791,0.00015823,2]
[366220902,1750131032959,-162.395253,0.00015823,2]
[366220903,1750131032973,-176.10395983,0.00015825,2]
[366220904,1750131032982,-152.274791,0.00015826,2]
[366220905,1750131032991,-162.395253,0.00015826,2]
[366220906,1750131033002,-152.274791,0.00015827,2]
[366220907,1750131033013,-162.395253,0.00015827,2]
[366220908,1750131033023,-152.274791,0.00015828,2]
[366220909,1750131033033,-162.395253,0.00015828,2]
[366220910,1750131033044,-150.0,0.00015843,2]
[366220911,1750131033054,-792.44614232,0.00015843,2]
[366220912,1750131033064,-150.0,0.00015854,2]
[366220913,1750131033075,-150.0,0.00015854,2]
[366220914,1750131033086,-150.0,0.00015854,2]
[366220915,1750131033096,-150.0,0.00015876,2]
[366220916,1750131033107,-166.6,0.0001588,2]
[366220917,1750131033117,-152.274791,0.00015882,2]
[366220918,1750131033127,-162.395253,0.00015882,2]
[366220919,1750131033138,-152.274791,0.00015883,2]
[366220920,1750131033148,-162.395253,0.00015883,2]
[366220921,1750131033159,-162.395253,0.00015884,2]
[366220922,1750131033170,-152.274791,0.00015885,2]
[366220923,1750131033180,-162.395253,0.00015885,2]
[366220924,1750131033190,-150.0,0.00015887,2]
[366220925,1750131033200,-150.0,0.00015894,2]
[366220926,1750131033210,-300.0,0.000159,2]
[366220927,1750131033220,-150.0,0.00015908,2]
[366220928,1750131033230,-152.274791,0.0001592,2]
[366220929,1750131033240,-162.395253,0.0001592,2]
[366220930,1750131033250,-150.0,0.00015925,2]
[366220931,1750131033260,-150.0,0.00015941,2]
[366220932,1750131033270,-150.0,0.00015974,2]
[366220933,1750131033284,-152.274791,0.00015985,2]
[366220934,1750131033295,-162.395253,0.00015985,2]
[366220935,1750131033305,-150.0,0.00015987,2]
[366220936,1750131033315,-152.274791,0.00015988,2]
[366220937,1750131033327,-162.395253,0.00015988,2]
[366220938,1750131033338,-152.274791,0.0001599,2]
[366220939,1750131033348,-162.395253,0.0001599,2]
[366220940,1750131033361,-152.274791,0.00015991,2]
[366220941,1750131033372,-162.395253,0.00015991,2]
[366220942,1750131033382,-150.0,0.00015995,2]
[366220943,1750131033392,-152.274791,0.00015999,2]
[366220944,1750131033402,-162.395253,0.00015999,2]
[366220945,1750131033414,-22545.74550626,0.00016,3]
[366220946,1750131033425,-45682.52163798,0.00016,2]
[366220947,1750131033436,-833.87704394,0.00016,3]
[366220948,1750131033446,-150.0,0.00016006,2]
[366220949,1750131033456,-1957.856,0.00016012,2]
[366220950,1750131033466,-151.0,0.00016012,2]
[366220951,1750131033475,-500.0,0.00016012,2]
[366220952,1750131033485,-338.06867366,0.00016012,2]
[366220953,1750131033496,-212.5793232,0.00016012,2]
[366220954,1750131033506,-500.0,0.00016012,2]
[366220955,1750131033516,-500.0,0.00016012,2]
[366220956,1750131033526,-500.0,0.00016012,2]
[366220957,1750131033536,-500.0,0.00016012,2]
[366220958,1750131033546,-500.0,0.00016012,2]
[366220959,1750131033556,-500.0,0.00016012,2]
[366220960,1750131033566,-500.0,0.00016012,2]
[366220961,1750131033577,-500.0,0.00016012,2]
[366220962,1750131033587,-500.0,0.00016012,2]
[366220963,1750131033597,-500.0,0.00016012,2]
[366220964,1750131033607,-500.0,0.00016012,2]
[366220965,1750131033617,-624.21369439,0.00016012,2]
[366220966,1750131033627,-500.0,0.00016012,2]
[366220967,1750131033637,-515.48724211,0.00016012,2]
[366220968,1750131033647,-500.0,0.00016012,2]
[366220969,1750131033659,-500.0,0.00016012,2]
[366220970,1750131033670,-500.0,0.00016012,2]
[366220971,1750131033681,-500.0,0.00016012,2]
[366220972,1750131033691,-500.0,0.00016012,2]
[366220973,1750131033702,-500.0,0.00016012,2]
[366220974,1750131033713,-500.0,0.00016012,2]
[366220975,1750131033723,-500.0,0.00016012,2]
[366220976,1750131033733,-500.0,0.00016012,2]
[366220977,1750131033742,-500.0,0.00016012,2]
[366220978,1750131033753,-500.0,0.00016012,2]
[366220979,1750131033762,-500.0,0.00016012,2]
[366220980,1750131033773,-207.4,0.00016012,2]
[366220981,1750131033782,-500.0,0.00016012,2]
[366220982,1750131033793,-575.19762739,0.00016012,2]
[366220983,1750131033803,-150.0,0.00016016,2]
[366220984,1750131033813,-150.0,0.00016031,2]
[366220985,1750131033823,-150.0,0.00016039,2]
[366220986,1750131033834,-461.37,0.00016055,2]
[366220987,1750131033844,-250.83304875,0.00016063,2]
[366220988,1750131033854,-2030.296672,0.00016067,2]
[366220989,1750131033864,-150.0,0.00016072,2]
[366220990,1750131033874,-152.274791,0.00016081,2]
[366220991,1750131033886,-162.395253,0.00016081,2]
[366220992,1750131033896,-150.0,0.00016087,2]
[366220993,1750131033907,-150.0,0.00016104,2]
[366220994,1750131033917,-2105.41764886,0.00016122,2]
[366220995,1750131033927,-150.0,0.00016137,2]
[366220996,1750131033938,-150.0,0.00016137,2]
[366220997,1750131033948,-150.0,0.00016137,2]
[366220998,1750131033957,-150.0,0.00016137,2]
[366220999,1750131033967,-150.0,0.00016137,2]
[366221000,1750131033977,-150.0,0.00016137,2]
[366221001,1750131033988,-150.0,0.00016137,2]
[366221002,1750131033997,-150.0,0.00016137,2]
[366221003,1750131034007,-150.0,0.00016137,2]
[366221004,1750131034018,-152.274791,0.00016152,2]
[366221005,1750131034029,-162.395253,0.00016152,2]
[366221006,1750131034039,-500.0,0.00016164,2]
[366221007,1750131034049,-150.0,0.0001617,2]
[366221008,1750131034059,-2183.31810187,0.00016177,2]
[366221009,1750131034069,-150.0,0.00016187,2]
[366221010,1750131034080,-150.0,0.00016202,2]
[366221011,1750131034090,-202.0,0.00016205,3]
[366221012,1750131034099,-752.07880799,0.00016232,2]
[366221013,1750131034111,-150.0,0.00016235,2]
[366221014,1750131034121,-150.0,0.00016243,2]
[366221015,1750131034131,-152.274791,0.00016249,2]
[366221016,1750131034142,-162.395253,0.00016249,2]
[366221017,1750131034151,-150.0,0.00016258,2]
[366221018,1750131034163,-150.0,0.00016268,2]
[366221019,1750131034173,-246.07,0.00016268,2]
[366221020,1750131034183,-150.0,0.00016279,2]
[366221021,1750131034193,-150.0,0.00016287,2]
[366221022,1750131034203,-1175.58,0.000163,2]
[366221023,1750131034214,-150.0,0.000163,2]
[366221024,1750131034225,-150.0,0.00016333,2]
[366221025,1750131034235,-150.0,0.00016349,2]
[366221026,1750131034245,-150.0,0.00016366,2]
[366221027,1750131034256,-200.0,0.00016369,2]
[366221028,1750131034266,-2837.11076607,0.00016377,2]
[366221029,1750131034279,-2837.11076607,0.00016378,2]
[366221030,1750131034290,-150.0,0.0001638,2]
[366221031,1750131034300,-200.0,0.00016381,2]
[366221032,1750131034310,-924.42546134,0.00016381,2]
[366221033,1750131034321,-200.0,0.00016386,2]
[366221034,1750131034331,-150.0,0.00016387,2]
[366221035,1750131034341,-2837.11076607,0.00016387,2]
[366221036,1750131034352,-5195.84972415,0.00016389,2]
[366221037,1750131034362,-292.09019826,0.00016393,2]
[366221038,1750131034372,-924.42546134,0.00016397,2]
[366221039,1750131034383,-150.0,0.00016398,2]
[366221040,1750131034393,-2837.11076607,0.00016399,2]
[366221041,1750131034404,-292.09019826,0.000164,2]
[366221042,1750131034414,-2837.11076607,0.00016402,2]
[366221043,1750131034424,-200.0,0.0001641,2]
[366221044,1750131034434,-200.0,0.00016411,2]
[366221045,1750131034445,-200.0,0.00016411,2]
[366221046,1750131034455,-292.09019826,0.00016417,2]
[366221047,1750131034465,-150.0,0.0001642,2]
[366221048,1750131034475,-150.0,0.0001642,2]
[366221049,1750131034485,-150.0,0.0001642,2]
[366221050,1750131034495,-4053.15853507,0.00016424,2]
[366221051,1750131034510,-1142.69118908,0.00016424,2]
[366221052,1750131034520,-2837.11076607,0.00016425,2]
[366221053,1750131034531,-558.09393085,0.00016426,2]
[366221054,1750131034540,-292.09019826,0.00016429,2]
[366221055,1750131034551,-558.09393085,0.00016429,2]
[366221056,1750131034561,-150.0,0.00016431,2]
[366221057,1750131034571,-200.0,0.00016434,2]
[366221058,1750131034582,-558.09393085,0.00016434,2]
[366221059,1750131034592,-924.42546134,0.00016436,2]
[366221060,1750131034602,-924.42546134,0.00016437,2]
[366221061,1750131034612,-5195.84972415,0.00016438,2]
[366221062,1750131034622,-200.0,0.00016446,2]
[366221063,1750131034633,-558.09393085,0.0001645,2]
[366221064,1750131034643,-200.0,0.00016452,2]
[366221065,1750131034652,-292.09019826,0.00016455,2]
[366221066,1750131034664,-5195.84972415,0.00016455,2]
[366221067,1750131034673,-150.0,0.00016455,2]
[366221068,1750131034683,-292.09019826,0.00016462,2]
[366221069,1750131034694,-967.435409,0.00016463,2]
[366221070,1750131034704,-200.0,0.00016463,2]
[366221071,1750131034715,-150.0,0.00016464,2]
[366221072,1750131034726,-200.0,0.00016466,2]
[366221073,1750131034736,-924.42546134,0.00016468,2]
[366221074,1750131034747,-924.42546134,0.0001647,2]
[366221075,1750131034758,-292.09019826,0.0001647,2]
[366221076,1750131034768,-924.42546134,0.00016471,2]
[366221077,1750131034778,-5195.84972415,0.00016473,2]
[366221078,1750131034789,-558.09393085,0.00016474,2]
[366221079,1750131034799,-558.09393085,0.00016476,2]
[366221080,1750131034810,-558.09393085,0.00016479,2]
[366221081,1750131034820,-292.09019826,0.00016479,2]
[366221082,1750131034830,-558.09393085,0.0001648,2]
[366221083,1750131034840,-5195.84972415,0.00016486,2]
[366221084,1750131034849,-150.0,0.00016487,2]
[366221085,1750131034860,-924.42546134,0.00016489,2]
[366221086,1750131034870,-200.0,0.0001649,2]
[366221087,1750131034880,-2837.11076607,0.00016491,2]
[366221088,1750131034890,-5195.84972415,0.00016493,2]
[366221089,1750131034901,-502.0,0.00016493,2]
[366221090,1750131034912,-2837.11076607,0.00016494,2]
[366221091,1750131034922,-150.0,0.00016496,2]
[366221092,1750131034933,-5195.84972415,0.00016499,2]
[366221093,1750131034942,-2085.00000001,0.000165,2]
[366221094,1750131034953,-150.0,0.00016501,2]
[366221095,1750131034963,-156.55935743,0.00016522,2]
[366221096,1750131034973,-150.0,0.00016529,2]
[366221097,1750131034983,-150.0,0.00016562,2]
[366221098,1750131034994,-150.0,0.00016562,2]
[366221099,1750131035004,-150.0,0.00016562,2]
[366221100,1750131035013,-150.0,0.00016562,2]
[366221101,1750131035024,-150.0,0.00016562,2]
[366221102,1750131035034,-150.0,0.00016562,2]
[366221103,1750131035044,-150.0,0.00016587,2]
[366221104,1750131035055,-150.0,0.00016594,2]
[366221105,1750131035066,-506.02,0.00016599,2]
[366221106,1750131035294,-490.0,0.00016599,2]
[366221107,1750131035305,-490.0,0.00016599,2]
[366221108,1750131035315,-490.0,0.00016599,2]
[366221109,1750131035326,-451.09425665,0.00016599,2]
[366221110,1750131035336,-490.0,0.00016599,2]
[366221111,1750131035346,-500.0,0.00016599,2]
[366221112,1750131035356,-1063.68,0.00016599,2]
[366221113,1750131035367,-490.0,0.00016599,2]
[366221114,1750131035377,-490.0,0.00016599,2]
[366221115,1750131035387,-490.0,0.00016599,2]
[366221116,1750131035397,-490.0,0.00016599,2]
[366221117,1750131035407,-1701.44,0.00016599,2]
[366221118,1750131035418,-490.0,0.00016599,2]
[366221119,1750131035428,-490.0,0.00016599,2]
[366221120,1750131035438,-490.0,0.00016599,2]
[366221121,1750131035449,-490.0,0.00016599,2]
[366221122,1750131035459,-490.0,0.00016599,2]
[366221123,1750131035469,-490.0,0.00016599,2]